bitfinex-derivatives/quotes_SOLF0:USTF0_20240907
["timestamp","ask_amount","ask_price","bid_price","bid_amount"]
[1725713386374,3.9235,127.46,127.44,9.64]
[1725713386576,3.9235,127.46,127.44,13.5639]
[1725713386786,13.56320922,127.52,127.44,13.5639]
[1725713386986,3.9232,127.47,127.46,9.64]
[1725713387685,3.9229,127.48,127.46,9.64]
[1725713388182,3.9229,127.48,127.46,13.5633]
[1725713388782,3.9229,127.48,127.46,9.64]
[1725713389085,3.923,127.47,127.46,9.64]
[1725713389992,3.9229,127.48,127.46,9.64]
[1725713390986,9.64,127.52,127.46,9.64]
[1725713391290,0.41016715,127.51,127.45,9.64]
[1725713391592,3.9232,127.47,127.45,9.64]
[1725713391788,9.64,127.52,127.44,3.9239]
[1725713391990,10.0502446,127.51,127.44,9.64]
[1725713392191,3.9232,127.47,127.44,13.5639]
[1725713392786,9.64,127.51,127.44,9.64]
[1725713392993,0.41029108,127.5,127.46,9.64]
[1725713393190,0.41029108,127.49,127.46,9.64]
[1725713393385,9.64,127.52,127.46,9.64]
[1725713393585,0.41025834,127.51,127.46,9.64]
[1725713394597,0.41022097,127.5,127.46,9.64]
[1725713394893,0.41022097,127.49,127.46,9.64]
[1725713395086,3.9227,127.48,127.46,9.64]
[1725713395993,3.923,127.47,127.46,9.64]
[1725713396490,3.9234,127.46,127.44,9.64]
[1725713396689,9.64,127.51,127.44,9.64]
[1725713396885,6.65276021,127.53,127.42,1.3598]
[1725713396886,9.64,127.49,127.42,1.3598]
[1725713397091,0.41027922,127.48,127.43,9.64]
[1725713397491,3.9239,127.45,127.43,9.64]
[1725713397790,3.9239,127.45,127.44,9.64]
[1725713398792,6.65276021,127.53,127.44,9.64]
[1725713398991,10.05029619,127.52,127.46,9.64]
[1725713399188,0.41029619,127.51,127.46,9.64]
[1725713399792,3.9231,127.47,127.46,9.64]
[1725713400096,6.65276021,127.53,127.46,9.64]
[1725713400292,0.41009991,127.52,127.48,9.64]
[1725713401096,0.41009991,127.52,127.46,9.64]
[1725713401295,0.41012444,127.51,127.46,9.64]
[1725713401497,0.41012444,127.5,127.46,9.64]
[1725713401801,16.29276021,127.53,127.46,9.64]
[1725713401802,3.9229,127.48,127.46,9.64]
[1725713402285,16.29276021,127.53,127.46,9.64]
[1725713402485,0.41012349,127.52,127.44,3.9237]
[1725713402692,0.41012349,127.52,127.46,9.64]
[1725713403192,0.41012349,127.52,127.47,9.64]
[1725713403390,0.41012349,127.52,127.49,9.64]
[1725713403696,0.41012349,127.52,127.42,1.3598]
[1725713403697,4.87692161,127.57,127.5,9.64]
[1725713403889,9.64,127.55,127.45,128.38703548]
[1725713404089,0.40969741,127.54,127.48,9.64]
[1725713404690,0.40969741,127.54,127.47,5.2515]
[1725713404888,0.40969741,127.54,127.49,9.64]
[1725713405093,0.40969741,127.54,127.47,5.2515]
[1725713405094,10.04969741,127.54,127.47,1.3286]
[1725713405397,9.64,127.52,127.46,9.64]
[1725713405692,3.9227,127.48,127.46,9.64]
[1725713406393,3.9225,127.49,127.46,13.5633]
[1725713406590,9.64,127.52,127.47,9.64]
[1725713406996,3.9226,127.49,127.47,9.64]
[1725713408193,3.9226,127.49,127.48,9.64]
[1725713408595,0.40984369,127.53,127.48,9.64]
[1725713408596,3.9221,127.5,127.48,9.64]
[1725713408806,0.40984369,127.53,127.48,9.64]
[1725713409299,3.922,127.51,127.5,9.64]
[1725713410300,3.9217,127.52,127.5,9.64]
[1725713410499,3.9217,127.52,127.51,9.64]
[1725713411300,3.9477425,127.55,127.51,9.64]
[1725713411597,9.64,127.55,127.49,9.64]
[1725713411802,3.9255455,127.54,127.49,9.64]
[1725713412402,3.9221,127.51,127.49,9.64]
[1725713412703,2.6788,127.57,127.49,9.64]
[1725713412897,9.64,127.54,127.49,9.64]
[1725713413098,3.9221,127.51,127.49,9.64]
[1725713413705,3.85218182,127.53,127.47,1.3886]
[1725713413901,2.6788,127.57,127.47,1.3886]
[1725713414208,3.9223,127.5,127.48,9.64]
[1725713415499,2.6788,127.57,127.48,13.5626]
[1725713415699,9.64,127.55,127.48,9.64]
[1725713415899,0.40972784,127.54,127.48,9.64]
[1725713416100,3.9223,127.5,127.48,9.64]
[1725713416302,9.64,127.54,127.48,9.64]
[1725713416604,3.9224,127.49,127.48,9.64]
[1725713419305,3.9227,127.48,127.47,1.3886]
[1725713419902,3.9225,127.49,127.47,11.0286]
[1725713420505,3.9227,127.48,127.47,11.0286]
[1725713422207,2.6788,127.57,127.47,11.0286]
[1725713422507,0.40957423,127.56,127.48,1.4206]
[1725713422702,3.9211,127.54,127.52,9.64]
[1725713422907,2.7245,127.6,127.52,9.64]
[1725713423100,0.40948097,127.59,127.52,9.64]
[1725713423305,0.40948097,127.59,127.48,1.4206]
[1725713423505,0.40948097,127.59,127.56,9.64]
[1725713423705,0.40948097,127.59,127.58,9.64]
[1725713423906,10.04948097,127.62,127.48,1.4206]
[1725713424107,0.40948097,127.61,127.55,9.64]
[1725713424311,3.9198,127.58,127.55,9.64]
[1725713424617,1.4229,127.62,127.57,9.64]
[1725713424815,0.40912726,127.61,127.57,9.64]
[1725713425017,4.35526009,127.61,127.57,9.64]
[1725713425315,0.40912726,127.6,127.55,9.64]
[1725713425515,0.40912726,127.6,127.56,9.64]
[1725713425714,1.4229,127.62,127.56,9.64]
[1725713425913,4.33133847,127.61,127.55,24.1]
[1725713426108,3.9198,127.58,127.54,25.4443]
[1725713426514,3.91437242,127.59,127.53,2.6893]
[1725713426716,24.1,127.61,127.53,2.6893]
[1725713426717,0.40921685,127.58,127.53,2.6893]
[1725713426915,24.1,127.61,127.53,2.6893]
[1725713427212,3.9203,127.56,127.53,2.6893]
[1725713428512,3.9203,127.56,127.53,1.3714]
[1725713429516,24.1,127.59,127.53,1.3714]
[1725713429716,1.80383566,127.58,127.5,24.1]
[1725713429913,0.40943566,127.57,127.5,25.3899]
[1725713430117,3.9206,127.55,127.5,29.312]
[1725713430511,1.3944,127.58,127.5,25.3899]
[1725713430827,24.1,127.54,127.46,3.9478251]
[1725713431014,0.40974423,127.53,127.45,25.3899]
[1725713431316,3.9224,127.5,127.45,29.3135]
[1725713431516,28.02689092,127.54,127.45,25.3899]
[1725713431709,0.40977466,127.53,127.45,25.3899]
[1725713432111,3.9221,127.5,127.45,29.3135]
[1725713432818,3.9219,127.51,127.47,24.1]
[1725713434123,3.9224,127.5,127.46,3.82764974]
[1725713434322,24.1,127.52,127.45,1.2899]
[1725713434511,25.4751,127.52,127.45,1.2899]
[1725713434716,3.9226,127.49,127.45,1.2899]
[1725713435618,1.3751,127.52,127.46,24.1]
[1725713435815,3.99867406,127.53,127.46,27.99808316]
[1725713436014,24.1,127.55,127.46,27.99808316]
[1725713436219,0.40968717,127.54,127.47,3.923]
[1725713436415,4.41330418,127.54,127.47,3.923]
[1725713436621,4.00361701,127.54,127.46,27.99808316]
[1725713436822,4.00361701,127.54,127.46,31.92128316]
[1725713437129,3.922,127.51,127.46,31.92128316]
[1725713437316,4.00361701,127.54,127.46,31.92128316]
[1725713438119,24.50973881,127.53,127.45,1.2899]
[1725713438323,24.1,127.53,127.45,1.2899]
[1725713438822,24.1,127.53,127.45,5.2135]
[1725713439431,3.9224,127.5,127.45,5.2135]
[1725713440124,3.9225,127.49,127.45,5.2135]
[1725713442526,3.9223,127.5,127.46,28.0233]
[1725713443229,3.9223,127.5,127.47,3.923]
[1725713444331,3.9225,127.49,127.46,31.976518]
[1725713444531,3.9225,127.49,127.46,28.0232]
[1725713447230,3.9233,127.46,127.45,1.2899]
[1725713447436,26.8392,127.51,127.42,1.2894]
[1725713447637,24.1,127.49,127.42,1.2894]
[1725713448734,3.9239,127.45,127.42,1.2894]
[1725713449531,3.9239,127.45,127.42,5.2139]
[1725713449732,26.8392,127.51,127.43,24.1]
[1725713449932,0.41006105,127.5,127.43,24.1]
[1725713450335,3.9237,127.45,127.42,1.2894]
[1725713450535,26.8392,127.51,127.42,1.2894]
[1725713450736,24.1,127.49,127.4,2.6566]
[1725713451038,0.41021512,127.48,127.4,2.6566]
[1725713451238,24.1,127.49,127.4,6.5816]
[1725713451436,3.9242,127.44,127.4,6.5816]
[1725713452340,3.9243,127.43,127.4,6.5816]
[1725713453542,24.1,127.47,127.4,5.2167]
[1725713453735,24.1,127.49,127.41,3.9248]
[1725713453935,24.1,127.49,127.41,24.1]
[1725713454442,2.9081,127.51,127.41,24.1]
[1725713454443,3.9235,127.46,127.41,24.1]
[1725713454640,27.0081,127.51,127.41,25.4376]
[1725713454837,0.41002629,127.5,127.42,3.9243]
[1725713455038,3.9236,127.46,127.42,3.9243]
[1725713456839,27.0081,127.51,127.41,25.4376]
[1725713457045,24.1,127.49,127.41,24.1]
[1725713457247,24.1,127.49,127.4,2.6329]
[1725713457739,3.9241,127.44,127.41,3.9247]
[1725713458340,3.9244,127.43,127.4,2.6329]
[1725713458542,3.9244,127.43,127.4,1.2917]
[1725713459046,3.9244,127.43,127.4,5.2169]
[1725713460346,24.1,127.49,127.4,1.2917]
[1725713460543,47.7,127.47,127.36,1.3091]
[1725713460743,24.1,127.44,127.36,2.621]
[1725713460944,3.9258,127.39,127.36,2.621]
[1725713461247,3.85586168,127.42,127.36,1.3119]
[1725713461444,24.1,127.42,127.36,1.3119]
[1725713461741,3.9263,127.37,127.34,155.01413215]
[1725713461951,3.9263,127.37,127.34,158.94093215]
[1725713462143,1.3444,127.41,127.34,179.11413215]
[1725713462349,1.3444,127.41,127.35,3.9264]
[1725713462551,3.9246,127.42,127.37,24.1]
[1725713462947,3.9246,127.42,127.38,3.9256]
[1725713463649,3.9249,127.41,127.38,3.9256]
[1725713463942,3.8525482,127.45,127.39,3.9255]
[1725713464143,3.9248,127.42,127.39,3.9255]
[1725713465452,3.9249,127.41,127.38,3.9257]
[1725713465840,3.9247,127.42,127.37,24.1]
[1725713466042,3.9247,127.42,127.39,3.9253]
[1725713466745,3.9247,127.42,127.39,28.0253]
[1725713467347,3.9249,127.41,127.39,28.0253]
[1725713467552,3.9249,127.41,127.36,1.3271]
[1725713467855,3.925,127.41,127.36,1.3271]
[1725713468059,3.83409617,127.45,127.37,24.1]
[1725713468361,3.83409617,127.45,127.39,28.0253]
[1725713468754,3.9247,127.42,127.39,28.0253]
[1725713469951,3.9247,127.42,127.39,3.9253]
[1725713471653,3.9249,127.41,127.38,3.9256]
[1725713472759,3.9249,127.41,127.39,3.9254]
[1725713472955,3.83409617,127.45,127.37,24.1]
[1725713473554,3.9246,127.42,127.39,3.9253]
[1725713474558,3.9256,127.39,127.36,5.2534]
[1725713474757,3.9256,127.39,127.36,3.9263]
[1725713474962,3.9256,127.39,127.35,25.4119]
[1725713475158,3.9256,127.39,127.36,3.9264]
[1725713476066,1.3077,127.43,127.35,5.2385]
[1725713476272,24.1,127.42,127.35,5.2385]
[1725713476562,24.1,127.42,127.35,1.3119]
[1725713476966,3.926,127.38,127.35,5.2385]
[1725713477760,24.1,127.42,127.35,1.3119]
[1725713478375,3.926,127.38,127.35,5.2386]
[1725713479061,3.9261,127.37,127.35,1.3119]
[1725713479663,1.3077,127.43,127.35,1.3119]
[1725713479664,3.9264,127.36,127.35,1.3119]
[1725713479865,3.9264,127.36,127.32,24.1]
[1725713480065,3.9264,127.36,127.32,25.3883]
[1725713480263,3.9264,127.36,127.33,3.9271]
[1725713481863,3.9262,127.37,127.34,3.927]
[1725713482264,24.1,127.4,127.32,25.3883]
[1725713482566,1.3077,127.43,127.35,24.1]
[1725713483569,24.1,127.42,127.33,29.37131462]
[1725713483771,3.926,127.38,127.33,29.37131462]
[1725713484673,3.926,127.38,127.35,3.9267]
[1725713489174,3.9255,127.4,127.36,3.9262]
[1725713489379,24.1,127.42,127.36,3.9262]
[1725713489575,1.3835,127.41,127.36,3.9262]
[1725713489975,3.9257,127.39,127.36,3.9262]
[1725713492382,3.9258,127.38,127.36,3.9262]
[1725713493187,3.9253,127.4,127.37,3.926]
[1725713494679,3.9255,127.39,127.36,3.9263]
[1725713496787,1.3077,127.43,127.35,24.1]
[1725713497384,3.9247,127.42,127.38,3.9255]
[1725713497583,3.9247,127.42,127.38,5.2555]
[1725713497779,5.20249617,127.45,127.38,1.33]
[1725713498085,5.20249617,127.45,127.4,3.925]
[1725713498086,3.9243,127.43,127.4,3.925]
[1725713498280,3.9243,127.43,127.38,1.33]
[1725713498281,5.20249617,127.45,127.38,1.33]
[1725713498479,3.9248,127.42,127.39,3.9254]
[1725713498790,3.9248,127.42,127.38,1.33]
[1725713498791,5.20249617,127.45,127.38,1.33]
[1725713499186,3.9248,127.42,127.38,5.2555]
[1725713502586,3.9248,127.42,127.39,3.9255]
[1725713502891,3.925,127.41,127.39,3.9255]
[1725713503690,3.9247,127.42,127.39,3.9255]
[1725713504294,3.9249,127.41,127.39,3.9255]
[1725713505793,24.1,127.44,127.38,5.2556]
[1725713506091,24.1,127.44,127.38,1.33]
[1725713506289,3.9251,127.41,127.38,5.2556]
[1725713508381,3.9251,127.41,127.39,3.9255]
[1725713508581,3.9247,127.42,127.39,3.9255]
[1725713510193,3.9247,127.42,127.4,3.9252]
[1725713510389,3.9244,127.43,127.4,9.65]
[1725713510592,9.65,127.47,127.41,9.65]
[1725713510793,9.65,127.48,127.42,3.9244]
[1725713510994,3.9239,127.45,127.42,3.9244]
[1725713515100,3.924,127.44,127.42,3.9244]
[1725713515399,26.9037,127.49,127.4,27.95762954]
[1725713516308,3.9235,127.46,127.4,27.95762954]
[1725713516907,3.9235,127.46,127.42,3.9243]
[1725713519404,3.9237,127.45,127.42,3.9243]
[1725713520102,26.9037,127.49,127.4,27.95762954]
[1725713520103,3.924,127.44,127.41,3.9247]
[1725713520305,26.9037,127.49,127.4,24.12]
[1725713520805,24.12,127.47,127.39,1.4237]
[1725713521012,24.12,127.45,127.38,1.33]
[1725713521205,3.9245,127.43,127.39,3.9253]
[1725713521411,3.85634411,127.44,127.39,3.9253]
[1725713521898,24.12,127.47,127.38,25.45]
[1725713522103,24.12,127.47,127.39,1.3314]
[1725713522406,3.9241,127.44,127.41,3.9249]
[1725713526007,3.9241,127.44,127.42,3.9246]
[1725713526715,3.9241,127.44,127.41,3.9247]
[1725713527607,3.9243,127.43,127.4,3.925]
[1725713527807,3.82799874,127.45,127.38,25.45]
[1725713528003,3.9247,127.42,127.39,3.9253]
[1725713532123,3.9254,127.4,127.38,1.33]
[1725713532323,24.12,127.43,127.36,1.3964]
[1725713532521,24.12,127.43,127.35,25.472]
[1725713532730,3.9256,127.39,127.36,3.9262]
[1725713533831,3.9256,127.39,127.37,3.926]
[1725713534036,3.9254,127.4,127.37,3.926]
[1725713539533,3.9255,127.39,127.37,3.926]
[1725713541131,3.9259,127.38,127.36,3.9263]
[1725713541327,9.66,127.41,127.36,3.9263]
[1725713541925,3.9255,127.4,127.37,3.9261]
[1725713544030,9.66,127.43,127.38,3.9256]
[1725713544926,3.9251,127.41,127.38,3.9256]
[1725713548727,3.9252,127.4,127.37,3.9259]
[1725713549136,9.66,127.42,127.36,9.66]
[1725713549336,3.9255,127.39,127.37,3.926]
[1725713549536,9.66,127.42,127.37,3.926]
[1725713549835,3.9254,127.4,127.37,3.926]
[1725713550538,3.9255,127.39,127.37,3.926]
[1725713553037,3.9259,127.38,127.35,1.352]
[1725713553535,9.66,127.41,127.35,1.352]
[1725713553734,3.9261,127.38,127.35,5.2786]
[1725713555541,3.9261,127.38,127.36,3.9264]
[1725713558340,3.9257,127.39,127.36,3.9264]
[1725713559642,3.9257,127.39,127.37,3.926]
[1725713571945,3.9258,127.38,127.36,3.9263]
[1725713576551,2.8669,127.44,127.35,1.352]
[1725713576753,9.66,127.43,127.36,9.66]
[1725713577059,9.66,127.42,127.35,1.352]
[1725713577353,13.50176615,127.42,127.36,13.66587281]
[1725713577552,13.50176615,127.42,127.37,3.9259]
[1725713577553,3.9252,127.4,127.37,3.9259]
[1725713580450,3.925,127.41,127.38,3.9258]
[1725713581263,17.44805594,127.42,127.39,3.9255]
[1725713581555,3.9247,127.42,127.37,9.66]
[1725713581745,13.52610482,127.44,127.37,9.66]
[1725713581949,3.9245,127.43,127.39,3.9253]
[1725713582145,13.52610482,127.44,127.38,9.66]
[1725713582656,3.9244,127.43,127.38,9.66]
[1725713583156,3.9244,127.43,127.4,3.9252]
[1725713585256,3.9241,127.44,127.41,3.9248]
[1725713585656,3.9241,127.44,127.4,9.66]
[1725713585857,3.9241,127.44,127.41,3.9246]
[1725713586357,3.9241,127.44,127.4,9.66]
[1725713586358,3.9241,127.44,127.42,3.9246]
[1725713587157,9.66,127.45,127.42,7.84641454]
[1725713587158,13.5838,127.45,127.42,7.84641454]
[1725713587358,16.20284301,127.47,127.43,3.924]
[1725713587747,3.9235,127.46,127.43,3.924]
[1725713590855,9.66,127.46,127.41,1.341]
[1725713591454,3.9241,127.44,127.41,5.2657]
[1725713591657,9.66,127.45,127.41,1.341]
[1725713591860,3.9244,127.43,127.41,1.341]
[1725713593750,3.9241,127.44,127.41,5.2657]
[1725713594961,3.9244,127.43,127.41,1.341]
[1725713595864,3.9241,127.44,127.41,5.2657]
[1725713596260,9.66,127.46,127.41,1.341]
[1725713596763,3.9238,127.45,127.42,3.9245]
[1725713598269,3.9238,127.45,127.42,7.81892394]
[1725713598465,3.9234,127.46,127.42,13.55442394]
[1725713599068,3.9234,127.46,127.43,3.9241]
[1725713600356,3.9238,127.45,127.42,17.47882394]
[1725713601162,3.9235,127.46,127.43,3.9242]
[1725713602265,3.9232,127.47,127.44,3.9239]
[1725713602569,3.9232,127.47,127.43,9.66]
[1725713602961,3.9232,127.47,127.44,3.9237]
[1725713604069,3.9232,127.47,127.45,3.9236]
[1725713607269,3.9232,127.47,127.44,3.9238]
[1725713608865,3.9232,127.47,127.45,3.9236]
[1725713609877,3.9229,127.48,127.44,9.66]
[1725713610076,10.9483,127.51,127.44,9.66]
[1725713610578,3.9227,127.49,127.46,3.9232]
[1725713610780,3.9227,127.49,127.46,9.66]
[1725713612279,11.0038,127.52,127.47,3.9229]
[1725713612779,9.66,127.52,127.47,3.9229]
[1725713612980,3.9223,127.5,127.47,3.9229]
[1725713613182,3.9223,127.5,127.48,3.9226]
[1725713614783,3.9219,127.51,127.48,3.9226]
[1725713616384,9.66,127.53,127.48,3.9226]
[1725713616385,3.9221,127.5,127.48,3.9226]
[1725713617889,3.9219,127.51,127.48,3.9226]
[1725713618080,117.52353682,127.55,127.47,10.994]
[1725713618281,9.66,127.53,127.47,10.994]
[1725713618776,3.9219,127.51,127.49,3.9223]
[1725713621093,3.9217,127.52,127.49,3.9223]
[1725713621591,3.9217,127.52,127.48,9.66]
[1725713621986,3.9217,127.52,127.49,3.86207911]
[1725713623290,3.9217,127.52,127.5,3.9219]
[1725713626802,3.9217,127.52,127.49,7.78427911]
[1725713628193,3.9217,127.52,127.5,3.922]
[1725713631000,3.9217,127.52,127.49,3.86207911]
[1725713631001,3.9217,127.52,127.49,3.9223]
[1725713631201,3.922,127.51,127.47,10.994]
[1725713631504,9.66,127.53,127.47,1.334]
[1725713631800,9.66,127.54,127.47,10.994]
[1725713632002,9.66,127.54,127.48,3.9226]
[1725713632300,3.9219,127.51,127.48,3.9226]
[1725713632996,9.66,127.53,127.47,14.9169]
[1725713632997,3.9221,127.5,127.47,14.9169]
[1725713633299,9.66,127.52,127.45,11.0583]
[1725713633704,9.66,127.51,127.45,11.0583]
[1725713634290,9.66,127.51,127.45,1.3983]
[1725713634493,9.66,127.51,127.44,142.23112338]
[1725713635198,3.9229,127.48,127.45,3.9235]
[1725713635795,3.9232,127.47,127.44,146.15492338]
[1725713636402,3.9229,127.48,127.45,3.9236]
[1725713636592,3.9229,127.48,127.45,13.5836]
[1725713640004,3.9226,127.49,127.47,9.66]
[1725713640203,9.66,127.53,127.47,9.66]
[1725713640507,4.70895749,127.6,127.44,132.57112338]
[1725713640508,4.70895749,127.61,127.51,9.66]
[1725713640802,9.66,127.58,127.51,9.66]
[1725713640996,4.37096338,127.57,127.51,9.66]
[1725713641198,0.40954999,127.56,127.51,10.9646]
[1725713641501,0.40954999,127.56,127.51,1.3046]
[1725713642001,0.40954999,127.56,127.51,10.9646]
[1725713642206,1.3548,127.59,127.53,9.66]
[1725713642400,0.40936035,127.58,127.54,9.66]
[1725713642803,4.32906035,127.58,127.54,9.66]
[1725713643000,3.9197,127.58,127.54,9.66]
[1725713643208,14.94549982,127.61,127.54,9.66]
[1725713643411,3.9197,127.58,127.54,13.5809]
[1725713644401,3.92,127.57,127.53,9.66]
[1725713645106,3.92,127.57,127.53,13.5811]
[1725713645900,3.92,127.57,127.54,9.66]
[1725713646203,9.66,127.57,127.51,3.9975]
[1725713646500,9.66,127.57,127.51,13.6575]
[1725713646695,3.9204,127.56,127.52,9.66]
[1725713647500,3.9204,127.56,127.52,13.5814]
[1725713649613,3.9206,127.55,127.52,13.5814]
[1725713649913,3.9206,127.55,127.52,9.66]
[1725713650502,3.9203,127.56,127.52,13.5813]
[1725713651910,9.66,127.58,127.51,7.9192]
[1725713652097,9.66,127.58,127.51,17.5792]
[1725713652501,3.9202,127.57,127.54,9.66]
[1725713652910,3.9198,127.58,127.54,13.5808]
[1725713653599,3.92,127.57,127.54,13.5808]
[1725713655811,3.92,127.57,127.54,9.66]
[1725713656909,3.92,127.57,127.54,13.5808]
[1725713658811,9.66,127.59,127.52,9.66]
[1725713659512,3.92,127.57,127.53,3.921]
[1725713659823,9.66,127.59,127.53,3.921]
[1725713660119,3.9203,127.56,127.53,3.921]
[1725713661620,3.92,127.57,127.54,9.66]
[1725713662012,9.66,127.59,127.53,3.921]
[1725713662318,3.9204,127.56,127.53,13.581]
[1725713662715,3.92,127.57,127.54,3.9208]
[1725713663022,9.66,127.6,127.54,9.66]
[1725713663315,3.9199,127.58,127.55,3.9206]
[1725713663520,9.66,127.6,127.51,3.9975]
[1725713663717,10.06914994,127.59,127.53,9.66]
[1725713663917,3.9202,127.57,127.54,3.9206]
[1725713664219,3.9202,127.57,127.54,9.66]
[1725713665320,3.9202,127.57,127.55,3.9205]
[1725713665521,3.9199,127.58,127.55,3.9205]
[1725713666514,9.66,127.59,127.51,3.9975]
[1725713666714,9.66,127.59,127.53,9.66]
[1725713667922,3.9204,127.56,127.53,13.581]
[1725713669116,3.9204,127.56,127.54,13.5808]
[1725713670713,9.66,127.59,127.55,3.9205]
[1725713671219,3.9197,127.58,127.55,3.9205]
[1725713671725,3.9197,127.58,127.55,13.5805]
[1725713674626,3.92,127.57,127.54,13.5807]
[1725713676228,9.66,127.6,127.54,9.66]
[1725713676528,0.40914647,127.59,127.54,9.66]
[1725713676824,3.9198,127.58,127.54,9.66]
[1725713677030,9.66,127.6,127.54,13.5809]
[1725713677230,0.40915143,127.59,127.54,13.5809]
[1725713677429,3.9202,127.57,127.54,13.5809]
[1725713678034,9.66,127.6,127.54,13.5809]
[1725713679234,9.66,127.6,127.55,3.9205]
[1725713679734,14.9348656,127.61,127.55,13.5805]
[1725713679934,0.40908456,127.6,127.55,13.5805]
[1725713680134,3.9198,127.58,127.55,13.5805]
[1725713680724,11.0496,127.61,127.55,13.5805]
[1725713680927,3.9202,127.57,127.55,9.66]
[1725713681329,3.9198,127.58,127.55,13.5805]
[1725713684134,3.9195,127.59,127.56,13.58]
[1725713686947,3.9192,127.6,127.58,9.66]
[1725713687452,3.919,127.61,127.58,13.5795]
[1725713687646,3.919,127.61,127.59,9.66]
[1725713688149,3.9186,127.62,127.58,3.8753339]
[1725713688444,3.9186,127.62,127.6,9.66]
[1725713689353,3.9187,127.61,127.6,9.66]
[1725713689545,3.9187,127.61,127.58,17.4143495]
[1725713689748,3.9187,127.61,127.58,13.5794]
[1725713691245,3.9187,127.61,127.59,3.9193]
[1725713692252,9.66,127.65,127.59,9.66]
[1725713692463,3.9186,127.62,127.59,9.66]
[1725713692756,9.66,127.65,127.59,9.66]
[1725713693062,3.9188,127.61,127.59,9.66]
[1725713693650,9.66,127.64,127.58,12.393]
[1725713693848,9.66,127.64,127.58,1.4174]
[1725713694157,3.9192,127.6,127.58,1.4174]
[1725713696247,3.9193,127.59,127.58,1.4174]
[1725713698561,3.9193,127.6,127.58,1.4174]
[1725713698751,3.9193,127.6,127.58,14.997]
[1725713699157,3.9188,127.61,127.58,14.997]
[1725713699556,115.71983351,127.67,127.6,13.5789]
[1725713699758,0.40856413,127.66,127.6,13.5789]
[1725713700262,3.9184,127.63,127.6,13.5789]
[1725713700564,3.9184,127.63,127.61,3.9186]
[1725713701463,3.9184,127.63,127.6,13.5789]
[1725713701863,3.9185,127.62,127.6,13.5789]
[1725713702764,3.8558025,127.68,127.6,9.66]
[1725713702964,0.40841013,127.67,127.63,9.66]
[1725713703264,7.30627886,127.71,127.63,9.66]
[1725713703265,3.9177,127.65,127.63,9.66]
[1725713705067,3.917,127.67,127.64,9.66]
[1725713705669,3.9172,127.66,127.64,13.5776]
[1725713706168,3.9172,127.66,127.64,9.66]
[1725713707264,3.917,127.67,127.64,13.5778]
[1725713707971,3.9172,127.66,127.64,13.5778]
[1725713708360,16.19059333,127.71,127.64,13.5778]
[1725713708673,3.9171,127.67,127.64,13.5778]
[1725713708867,3.9171,127.67,127.58,4.0597]
[1725713708868,9.66,127.71,127.66,9.66]
[1725713709170,3.9169,127.67,127.66,9.66]
[1725713709982,9.66,127.7,127.63,9.66]
[1725713710270,9.66,127.7,127.63,13.5779]
[1725713710473,3.9173,127.66,127.63,13.5779]
[1725713710667,9.66,127.7,127.63,13.5781]